bitfinex/quotes_SOLUSD_20240905
["timestamp","ask_amount","ask_price","bid_price","bid_amount"]
[1725564630425,0.8369896,129.58,129.56,52.7183]
[1725564632832,0.8369896,129.58,129.55,19.2972]
[1725564633037,8.5543896,129.58,129.55,19.2972]
[1725564633326,8.5543896,129.58,129.55,27.0161]
[1725564633830,0.8369896,129.58,129.55,27.0161]
[1725564634014,0.8369896,129.58,129.55,19.2972]
[1725564634015,10.48360254,129.58,129.55,19.2972]
[1725564634215,7.7184,129.56,129.53,6.3388]
[1725564634440,7.7191,129.55,129.51,7.7213]
[1725564634731,7.7196,129.54,129.51,7.7213]
[1725564634910,7.7192,129.55,129.51,7.7213]
[1725564635609,7.7192,129.55,129.51,27.0246]
[1725564636433,1.92994022,129.57,129.49,6.4564]
[1725564636639,21.92994022,129.57,129.5,1.54392026]
[1725564636807,21.92994022,129.57,129.49,6.4564]
[1725564637140,7.7195,129.55,129.51,7.7208]
[1725564637340,20.0,129.54,129.51,7.7208]
[1725564637822,20.0,129.54,129.52,45.0]
[1725564638839,8.5542896,129.58,129.54,7.7194]
[1725564639047,8.5542896,129.58,129.55,1.54353518]
[1725564639220,0.8369896,129.58,129.55,9.26253644]
[1725564639539,0.8369896,129.58,129.55,46.54353644]
[1725564640534,0.8369896,129.58,129.56,7.718]
[1725564640734,0.8369896,129.58,129.57,45.0]
[1725564640913,0.8369896,129.58,129.56,27.0137]
[1725564641427,0.8369896,129.58,129.56,28.55705774]
[1725564641741,0.8369896,129.58,129.57,45.0]
[1725564645642,0.8369896,129.58,129.55,7.7188]
[1725564646221,0.8369896,129.58,129.56,1.54339371]
[1725564646529,0.8369896,129.58,129.55,7.7188]
[1725564647237,0.8369896,129.58,129.56,54.26179033]
[1725564647617,0.8369896,129.58,129.57,7.7178]
[1725564647824,0.8369896,129.58,129.57,54.26115322]
[1725564648016,0.8369896,129.58,129.57,45.0]
[1725564648641,0.8369896,129.58,129.56,35.13386181]
[1725564648842,0.8369896,129.58,129.57,45.0]
[1725564649221,0.8369896,129.58,129.56,33.5905]
[1725564650922,0.8369896,129.58,129.57,9.26113698]
[1725564651125,0.8369896,129.58,129.57,54.26113698]
[1725564651329,0.8369896,129.58,129.57,52.7178]
[1725564652353,0.8369896,129.58,129.57,45.0]
[1725564652640,0.8369896,129.58,129.55,7.7189]
[1725564653224,0.8369896,129.58,129.56,7.7182]
[1725564653443,0.8369896,129.58,129.55,27.0156]
[1725564654945,0.8369896,129.58,129.56,7.7183]
[1725564655131,0.8369896,129.58,129.57,9.26123371]
[1725564655344,0.8369896,129.58,129.57,52.7178]
[1725564661345,0.8369896,129.58,129.57,102.7178]
[1725564661559,0.8369896,129.58,129.57,104.26077923]
[1725564661845,0.8369896,129.58,129.57,104.26058317]
[1725564662046,0.8369896,129.58,129.57,148.0298]
[1725564662431,0.8369896,129.58,129.57,124.7998]
[1725564664924,0.8369896,129.58,129.57,29.7998]
[1725564665127,0.8369896,129.58,129.57,7.7178]
[1725564665330,0.8369896,129.58,129.54,13.9347]
[1725564665331,8.5542896,129.58,129.54,13.9347]
[1725564665540,8.5542896,129.58,129.54,7.719]
[1725564665750,8.5542896,129.58,129.55,7.719]
[1725564665751,0.8369896,129.58,129.55,7.719]
[1725564667839,0.8369896,129.58,129.56,46.54350629]
[1725564668031,0.8369896,129.58,129.56,45.0]
[1725564668253,0.8369896,129.58,129.55,19.297]
[1725564668553,15.3821,129.57,129.48,6.2157]
[1725564668760,7.7218,129.51,129.46,27.0339]
[1725564669051,7.7208,129.52,129.46,19.31]
[1725564669453,20.0,129.51,129.46,19.31]
[1725564669640,7.7208,129.52,129.46,19.31]
[1725564669839,21.93035673,129.51,129.47,7.7237]
[1725564670028,29.65225673,129.51,129.46,27.0342]
[1725564670365,29.65225673,129.51,129.43,15.3005]
[1725564670366,21.93035673,129.51,129.43,19.3149]
[1725564670661,7.7242,129.47,129.43,27.0408]
[1725564670961,7.7233,129.48,129.43,27.0408]
[1725564671170,20.0,129.47,129.43,27.0408]
[1725564672059,20.0,129.47,129.4,19.3193]
[1725564672238,7.7254,129.45,129.4,27.0467]
[1725564672444,7.7254,129.45,129.41,7.7273]
[1725564672656,20.0,129.44,129.41,7.7273]
[1725564672858,9.65528801,129.47,129.43,7.7261]
[1725564673163,20.0,129.46,129.43,7.7261]
[1725564673359,9.65633963,129.45,129.41,7.7272]
[1725564673559,9.65633963,129.45,129.4,19.3193]
[1725564673737,20.0,129.44,129.4,27.0471]
[1725564673941,1.9316607,129.43,129.4,19.3193]
[1725564674744,20.0,129.44,129.4,27.047]
[1725564674944,21.93160227,129.44,129.4,27.047]
[1725564675343,1.93164768,129.47,129.41,1.54531814]
[1725564675545,21.93164768,129.47,129.44,7.7254]
[1725564675765,20.0,129.46,129.44,7.7254]
[1725564675956,20.0,129.46,129.44,20.8581424]
[1725564676264,20.0,129.46,129.44,20.85814539]
[1725564676576,21.93164768,129.47,129.44,19.3132]
[1725564676741,20.0,129.47,129.44,19.3132]
[1725564677341,20.0,129.47,129.42,7.7266]
[1725564677342,27.7239,129.47,129.42,7.7266]
[1725564677650,20.0,129.47,129.42,7.7266]
[1725564677852,16.2866,129.49,129.41,64.3179]
[1725564677853,20.0,129.48,129.41,72.0451]
[1725564678042,1.93157552,129.47,129.41,72.0451]
[1725564678564,9.65537552,129.47,129.42,9.27169083]
[1725564678765,20.0,129.46,129.43,1.54500756]
[1725564678951,20.0,129.46,129.43,52.7256]
[1725564679157,20.0,129.46,129.43,7.7256]
[1725564679353,9.65472782,129.48,129.43,7.7256]
[1725564679354,20.0,129.47,129.43,7.7256]
[1725564679668,20.0,129.47,129.43,9.27049402]
[1725564679867,20.0,129.47,129.43,7.7256]
[1725564680246,20.0,129.47,129.44,7.7254]
[1725564681441,27.7242,129.47,129.43,19.314]
[1725564681757,29.65532613,129.47,129.43,19.314]
[1725564682653,20.0,129.47,129.44,7.7251]
[1725564682958,20.0,129.47,129.45,45.0]
[1725564683466,20.0,129.47,129.44,7.7251]
[1725564683674,1.93111499,129.46,129.43,19.314]
[1725564684050,1.93138129,129.48,129.43,19.314]
[1725564684868,7.7244,129.46,129.43,19.314]
[1725564685053,29.65633673,129.45,129.41,7.7272]
[1725564685254,20.0,129.49,129.42,7.7266]
[1725564685255,7.7245,129.46,129.42,7.7266]
[1725564685465,21.93139947,129.45,129.42,7.7266]
[1725564685868,20.0,129.45,129.42,7.7266]
[1725564688163,7.7245,129.46,129.42,7.7266]
[1725564688571,20.0,129.45,129.42,7.7266]
[1725564688760,20.0,129.45,129.43,7.7261]
[1725564689156,20.0,129.45,129.42,27.0432]
[1725564689479,1.93139598,129.49,129.45,19.3119]
[1725564689685,6.4302,129.51,129.46,54.26870536]
[1725564689686,7.722,129.5,129.46,54.26870536]
[1725564689885,7.722,129.5,129.46,52.7241]
[1725564690454,1.9307567,129.51,129.47,19.3081]
[1725564691076,9.6509354,129.53,129.49,19.306]
[1725564691377,7.7209,129.52,129.48,7.723]
[1725564691558,9.65196051,129.51,129.47,7.7237]
[1725564691757,7.7214,129.51,129.47,7.7237]
[1725564691980,20.0,129.5,129.47,7.7237]
[1725564693281,20.0,129.51,129.48,45.0]
[1725564693581,20.0,129.51,129.48,64.3071]
[1725564693786,20.0,129.52,129.48,72.0302]
[1725564693955,1.93032396,129.51,129.48,72.0302]
[1725564694284,1.93032396,129.51,129.48,64.3071]
[1725564694456,20.0,129.52,129.48,64.3071]
[1725564694658,1.93046974,129.51,129.48,19.3071]
[1725564694884,21.93046974,129.51,129.48,19.3071]
[1725564695263,7.7221,129.5,129.45,7.7248]
[1725564695463,1.93077276,129.54,129.46,45.0]
[1725564695664,21.93077276,129.54,129.45,45.0]
[1725564695889,21.93077276,129.54,129.46,19.3101]
[1725564696180,7.7208,129.52,129.48,7.7229]
[1725564696681,20.0,129.51,129.47,7.7237]
[1725564696855,21.9304988,129.51,129.48,45.0]
[1725564697059,20.0,129.51,129.47,7.7237]
[1725564697260,20.0,129.51,129.48,52.7231]
[1725564697774,7.722,129.5,129.46,19.3101]
[1725564697981,9.65349565,129.49,129.45,7.7248]
[1725564698277,1.93079565,129.49,129.46,52.7243]
[1725564698487,9.65275248,129.5,129.46,52.7243]
[1725564698860,1.93075248,129.5,129.42,19.316]
[1725564699177,7.7244,129.46,129.42,27.0423]
[1725564699375,27.7251,129.45,129.41,7.7272]
[1725564700083,27.7251,129.45,129.4,7.7277]
[1725564700084,1.93135748,129.44,129.4,7.7277]
[1725564700277,1.93135748,129.44,129.39,27.0488]
[1725564700278,9.65735748,129.44,129.39,27.0488]
[1725564701064,9.65735748,129.44,129.4,7.7278]
[1725564701688,7.7251,129.45,129.41,7.7271]
[1725564701874,20.0,129.44,129.41,7.7271]
[1725564702360,20.0,129.44,129.42,7.7264]
[1725564702560,20.0,129.45,129.42,7.7264]
[1725564703886,27.725,129.45,129.41,27.0447]
[1725564704104,27.725,129.45,129.42,45.0]
[1725564706289,27.725,129.45,129.42,54.27168778]
[1725564706290,20.0,129.45,129.42,54.27168778]
[1725564707287,20.0,129.45,129.42,52.7266]
[1725564708375,7.7245,129.46,129.42,52.7266]
[1725564708577,20.0,129.45,129.42,52.7266]
[1725564710687,9.65525972,129.47,129.43,28.58634292]
[1725564710891,20.0,129.46,129.44,7.7254]
[1725564711074,20.0,129.47,129.44,7.7254]
[1725564711269,1.93101972,129.5,129.45,46.54481578]
[1725564711473,1.93067985,129.53,129.45,45.0]
[1725564711668,1.93067985,129.53,129.47,27.0324]
[1725564711669,7.7214,129.51,129.47,27.0324]
[1725564711878,7.7214,129.51,129.47,19.309]
[1725564712671,1.9305258,129.5,129.45,64.3124]
[1725564712883,9.6528258,129.5,129.45,64.3124]
[1725564713196,1.93073033,129.49,129.46,7.7243]
[1725564713499,9.65333033,129.49,129.45,72.0371]
[1725564713668,7.7226,129.49,129.45,72.0371]
[1725564714295,7.7241,129.47,129.43,7.7258]
[1725564714596,7.7234,129.48,129.44,7.7254]
[1725564714896,20.0,129.47,129.44,7.7254]
[1725564716182,20.0,129.47,129.45,7.7248]
[1725564716806,1.93091166,129.52,129.44,88.6257]
[1725564717096,9.65008084,129.54,129.5,7.7218]
[1725564717305,9.65008084,129.54,129.51,1.54413872]
[1725564719382,20.0,129.53,129.51,1.54413872]
[1725564720087,20.0,129.53,129.5,1.54411649]
[1725564720291,9.64805986,129.57,129.53,7.7197]
[1725564720599,0.8369896,129.58,129.54,20.84218538]
[1725564720811,0.8369896,129.58,129.49,95.0]
[1725564720999,0.8369896,129.58,129.53,7.7201]
[1725564721000,7.718,129.57,129.53,7.7201]
[1725564721693,2.76669076,129.58,129.53,19.3]
[1725564721889,10.48429076,129.58,129.53,27.0201]
[1725564722088,10.48429076,129.58,129.54,1.54375952]
[1725564722089,20.0,129.57,129.54,1.54375952]
[1725564722289,0.8369896,129.58,129.54,46.54375952]
[1725564722487,0.8369896,129.58,129.56,7.7182]
[1725564722691,0.8369896,129.58,129.55,19.2974]
[1725564722896,10.48373893,129.58,129.54,45.0]
[1725564723108,2.76643893,129.58,129.54,52.7195]
[1725564723294,2.76649819,129.58,129.54,52.7195]
[1725564723679,10.48389819,129.58,129.53,7.7198]
[1725564723987,10.48389819,129.58,129.53,9.26355976]
[1725564725282,0.8369896,129.58,129.54,52.7194]
[1725564725498,20.8369896,129.58,129.55,7.7188]
[1725564725697,0.8369896,129.58,129.54,72.0178]
[1725564725899,20.8369896,129.58,129.54,72.0178]
[1725564727303,20.8369896,129.58,129.55,1.54352937]
[1725564727800,1.92945006,129.57,129.54,64.2984]
[1725564728000,1.92945006,129.57,129.54,19.2984]
[1725564728810,28.5542896,129.58,129.54,28.56160055]
[1725564729307,28.5542896,129.58,129.54,27.0179]
[1725564730492,20.8369896,129.58,129.54,27.0179]
[1725564730694,22.76647582,129.58,129.54,27.0179]
[1725564731004,20.8369896,129.58,129.54,27.0179]
[1725564731206,1.92952527,129.57,129.51,19.3023]
[1725564731406,1.92952527,129.57,129.48,33.3305]
[1725564731607,7.7198,129.54,129.49,7.7225]
[1725564731795,7.7198,129.54,129.5,1.54411728]
[1725564732107,1.9301466,129.56,129.5,9.26591728]
[1725564732108,7.7191,129.55,129.5,9.26591728]
[1725564732295,20.0,129.54,129.51,1.54397756]
[1725564732883,29.6495838,129.54,129.5,19.3045]
[1725564733795,27.7196,129.54,129.5,19.3045]
[1725564733996,27.7196,129.54,129.5,27.0263]
[1725564734189,20.0,129.54,129.51,1.54397204]
[1725564734387,20.0,129.54,129.52,7.7206]
[1725564734589,27.7194,129.55,129.51,45.0]
[1725564734798,9.64973134,129.54,129.5,27.0263]
[1725564735114,9.64973134,129.54,129.5,19.3045]
[1725564735409,27.7191,129.55,129.51,7.7211]
[1725564735624,27.7191,129.55,129.51,1.54396008]
[1725564736087,27.7191,129.55,129.5,27.0263]
[1725564736294,27.7191,129.55,129.51,45.0]
[1725564736710,9.64965027,129.54,129.5,19.3045]
[1725564737308,27.7192,129.55,129.51,45.0]
[1725564737506,27.7192,129.55,129.52,1.54395719]
[1725564737717,27.7192,129.55,129.51,45.0]
[1725564739522,7.721,129.52,129.47,27.0313]
[1725564740089,7.721,129.52,129.48,7.7231]
[1725564740284,9.64985388,129.54,129.49,27.0284]
[1725564740502,20.0,129.53,129.49,27.0284]
[1725564740699,20.0,129.53,129.5,1.54417411]
[1725564741591,20.0,129.53,129.49,27.0284]
[1725564741792,20.0,129.53,129.5,1.54417132]
[1725564742900,27.7202,129.53,129.5,1.54417132]
[1725564743405,7.7209,129.52,129.48,7.7231]
[1725564743607,7.7209,129.52,129.49,45.0]
[1725564744211,20.0,129.53,129.49,46.54427009]
[1725564744412,29.65033761,129.54,129.49,46.54427009]
[1725564744895,29.65033761,129.54,129.49,73.57277009]
[1725564745430,21.93033761,129.54,129.49,1.54427009]
[1725564745607,21.93033761,129.54,129.49,7.7224]
[1725564746298,7.7205,129.53,129.49,7.7224]
[1725564746501,7.7205,129.53,129.48,9.26710899]
[1725564746796,7.7205,129.53,129.49,45.0]
[1725564747412,7.7205,129.53,129.49,52.7225]
[1725564747801,29.65115124,129.52,129.48,1.54420099]
[1725564747997,9.65188334,129.51,129.47,19.3094]
[1725564748206,7.7214,129.51,129.47,19.3094]
[1725564748406,7.7214,129.51,129.47,28.5774808]
[1725564749915,7.7214,129.51,129.47,27.033]
[1725564750123,7.7214,129.51,129.48,1.54447998]
[1725564751418,7.7214,129.51,129.47,27.033]
[1725564751628,7.7214,129.51,129.48,1.54444888]
[1725564752010,7.7214,129.51,129.47,27.033]
[1725564752323,7.7214,129.51,129.48,1.54447988]
[1725564752632,7.722,129.5,129.48,1.54447988]
[1725564753233,1.93056772,129.53,129.48,1.54447988]
[1725564753234,7.7216,129.51,129.48,1.54447988]
[1725564754624,7.7211,129.52,129.48,9.26747988]
[1725564754828,20.0,129.51,129.49,1.54427165]
[1725564756647,15.2462,129.55,129.49,65.85067165]
[1725564756812,7.7204,129.53,129.49,72.0288]
[1725564757007,27.7208,129.52,129.49,64.3064]
[1725564757520,27.7208,129.52,129.5,1.54421294]
[1725564757716,27.7208,129.52,129.49,64.3064]
[1725564758225,27.7208,129.52,129.5,1.5441993]
[1725564758226,20.0,129.52,129.5,1.5441993]
[1725564758406,27.7209,129.52,129.49,64.3064]
[1725564759403,27.7209,129.52,129.49,72.0289]
[1725564760032,27.7209,129.52,129.5,1.54419386]
[1725564761212,27.7209,129.52,129.49,72.0289]
[1725564763548,7.7223,129.5,129.46,19.3096]
[1725564763852,21.93053707,129.52,129.46,27.0336]
[1725564764172,21.93053707,129.52,129.46,27.0338]
[1725564764173,7.722,129.5,129.46,27.0338]
[1725564764938,1.93049575,129.51,129.47,7.7236]
[1725564764939,1.93066894,129.51,129.47,7.7236]
[1725564765163,21.93060251,129.52,129.47,9.26808201]
[1725564765436,20.0,129.52,129.48,7.7227]
[1725564765633,1.93054656,129.53,129.49,1.54427136]
[1725564765835,7.7211,129.52,129.49,1.54426816]
[1725564766017,20.0,129.51,129.49,1.54426816]
[1725564766612,20.0,129.51,129.48,45.0]
[1725564766818,20.0,129.51,129.49,1.54431603]
[1725564767019,20.0,129.51,129.48,45.0]
[1725564767229,20.0,129.51,129.48,46.54431572]
[1725564767839,20.0,129.51,129.49,1.54431562]
[1725564770444,7.7204,129.53,129.5,7.7219]
[1725564770644,3.27946399,129.56,129.51,1.54404007]
[1725564770849,22.06013969,129.58,129.51,19.3021]
[1725564772024,7.7191,129.55,129.51,27.0231]
[1725564773230,9.64952203,129.54,129.5,52.7217]
[1725564773430,7.719,129.55,129.51,9.26519697]
[1725564773633,7.719,129.55,129.51,7.7211]
[1725564774438,7.7198,129.54,129.5,52.7218]
[1725564774639,7.7192,129.55,129.51,7.7212]
[1725564775656,7.7192,129.55,129.52,7.7208]
[1725564776033,7.7192,129.55,129.51,7.7211]
[1725564777254,7.7186,129.56,129.52,54.26464616]
[1725564777550,20.0,129.55,129.52,9.26464616]
[1725564778437,20.0,129.55,129.52,7.7207]
[1725564778957,27.719,129.55,129.52,7.7207]
[1725564779253,27.719,129.55,129.51,7.7211]
[1725564779547,27.719,129.55,129.52,45.0]
[1725564779754,1.92976989,129.54,129.5,72.0252]
[1725564779936,9.64956989,129.54,129.5,72.0252]
[1725564780257,7.7198,129.54,129.51,7.7213]
[1725564783062,7.7198,129.54,129.51,9.26531682]
[1725564783568,7.7198,129.54,129.51,7.7213]
[1725564787269,7.7193,129.55,129.51,7.7213]
[1725564787457,7.7193,129.55,129.52,46.54401456]
[1725564787655,7.7193,129.55,129.51,7.7213]
[1725564787656,7.7215,129.51,129.47,19.3083]
[1725564787864,7.7209,129.52,129.47,19.3083]
[1725564788066,7.7209,129.52,129.49,7.7225]
[1725564788567,7.7209,129.52,129.48,7.7229]
[1725564788765,21.93046478,129.51,129.47,27.0319]
[1725564789077,20.0,129.51,129.47,27.0319]
[1725564789644,21.93055909,129.54,129.48,9.26754107]
[1725564789866,7.7212,129.52,129.49,1.54422972]
[1725564790066,20.0,129.51,129.48,9.26732972]
[1725564790275,29.65231714,129.51,129.47,27.0318]
[1725564790642,7.7221,129.5,129.47,27.0318]
[1725564791555,27.7216,129.51,129.48,1.54444049]
[1725564791747,27.7216,129.51,129.48,46.54444049]
[1725564791946,27.7216,129.51,129.49,1.54432035]
[1725564792147,7.7221,129.5,129.47,19.3083]
[1725564792363,7.7221,129.5,129.45,21.6006]
[1725564792364,20.0,129.51,129.45,29.3255]
[1725564792578,9.06910865,129.46,129.42,6.5751]
[1725564792878,7.725,129.45,129.41,42.9743]
[1725564793065,1.93138789,129.44,129.38,42.1368]
[1725564793371,7.726,129.44,129.4,7.7279]
[1725564793577,7.7262,129.43,129.39,7.7284]
[1725564793870,9.65793103,129.43,129.39,7.7284]
[1725564794070,9.65803103,129.43,129.39,7.7283]
[1725564794376,9.65743665,129.44,129.39,7.7283]
[1725564795079,20.0,129.43,129.39,7.7283]
[1725564795955,7.7252,129.45,129.4,20.86498524]
[1725564796153,20.0,129.44,129.4,20.86498524]
[1725564796850,20.0,129.44,129.41,7.7273]
[1725564797056,20.0,129.44,129.38,6.5901]
[1725564797057,7.7273,129.41,129.38,6.5901]
[1725564797363,7.7273,129.41,129.37,19.3237]
[1725564797564,7.7282,129.4,129.36,7.7301]
[1725564798064,7.7275,129.41,129.36,7.7301]
[1725564798374,1.93155415,129.43,129.39,7.7285]
[1725564798572,1.93171495,129.43,129.39,7.7285]
[1725564798771,9.65821495,129.43,129.38,27.0516]
[1725564799077,27.7268,129.42,129.38,27.0516]
[1725564800873,20.0,129.42,129.39,9.27395058]
[1725564801071,20.0,129.42,129.4,1.54535397]
[1725564801258,20.0,129.42,129.39,7.7284]
[1725564801456,20.0,129.43,129.4,52.7277]
[1725564801874,29.65674694,129.46,129.4,64.3197]
[1725564802255,7.725,129.45,129.4,64.3197]
[1725564802764,7.725,129.45,129.41,7.727]
[1725564802958,9.65708625,129.44,129.4,72.0475]
[1725564803574,9.65708625,129.44,129.41,7.7272]
[1725564803575,1.93138625,129.44,129.41,7.7272]
[1725564803772,1.93138625,129.44,129.4,72.0474]
[1725564803968,29.65708625,129.44,129.4,72.0474]
[1725564804188,7.7257,129.44,129.4,72.0474]
[1725564805377,9.65772808,129.43,129.4,27.0474]
[1725564805564,21.93178626,129.42,129.37,19.3229]
[1725564805879,1.9319255,129.45,129.37,19.3229]
[1725564806076,7.7272,129.42,129.38,7.7291]
[1725564807165,7.7272,129.42,129.38,9.2746478]
[1725564807865,7.7272,129.42,129.38,7.7291]
[1725564808762,7.7272,129.42,129.38,9.27467931]
[1725564810379,1.9319255,129.45,129.39,19.3211]
[1725564810584,1.9319255,129.45,129.38,7.7289]
[1725564811579,1.9319255,129.45,129.39,19.3213]
[1725564811783,7.7263,129.43,129.39,27.0497]
[1725564812079,20.0,129.42,129.39,27.0497]
[1725564812682,29.65850264,129.42,129.39,19.3213]
[1725564812886,27.7268,129.42,129.39,19.3213]
[1725564814578,1.93174033,129.46,129.44,7.7254]
[1725564814769,9.65375421,129.49,129.45,9.26964337]
[1725564814975,9.65375421,129.49,129.45,1.54484337]
[1725564815483,18.18558449,129.5,129.45,9.26958759]
[1725564815781,18.18558449,129.5,129.45,9.26942396]
[1725564816085,18.18558449,129.5,129.46,1.54476458]
[1725564816268,1.930892,129.49,129.46,1.54476458]
[1725564817294,29.653492,129.49,129.46,1.54476458]
[1725564817661,20.0,129.49,129.46,1.54471316]
[1725564817990,7.7214,129.51,129.46,20.85491316]
[1725564818181,7.722,129.5,129.46,27.0345]
[1725564819365,20.0,129.49,129.46,27.0345]
[1725564820492,20.0,129.49,129.47,1.54452321]
[1725564820794,1.93065391,129.55,129.48,50.0]
[1725564821004,7.719,129.55,129.51,7.7213]
[1725564821297,7.7184,129.56,129.52,19.3016]
[1725564822388,7.718,129.57,129.53,1.54382607]
[1725564822896,7.7184,129.56,129.53,1.54382607]
[1725564823098,7.7184,129.56,129.52,27.0219]
[1725564823279,7.7184,129.56,129.53,1.54380588]
[1725564823698,20.0,129.55,129.53,1.54380588]
[1725564824885,20.0,129.55,129.5,7.7215]
[1725564824886,9.64895823,129.55,129.5,7.7215]
[1725564825087,9.64895823,129.55,129.49,19.3052]
[1725564825088,1.92993421,129.57,129.51,45.0]
[1725564825396,21.92993421,129.57,129.51,45.0]
[1725564825693,21.92993421,129.57,129.5,45.0]
[1725564825895,21.92993421,129.57,129.51,19.3031]
[1725564826075,20.0,129.56,129.52,52.7203]
[1725564826271,22.76668957,129.58,129.53,1.54376955]
[1725564826478,22.76668957,129.58,129.52,52.7203]
[1725564826479,22.26668957,129.58,129.52,52.7203]
[1725564826784,7.7189,129.56,129.52,52.7203]
[1725564827102,20.0,129.55,129.52,45.0]
[1725564827283,2.26668957,129.58,129.53,1.54378726]
[1725564827601,0.3369896,129.58,129.55,7.7189]
[1725564827901,0.3369896,129.58,129.56,1.54341676]
[1725564828103,0.3369896,129.58,129.55,7.7189]
[1725564828279,8.0542896,129.58,129.54,7.7195]
[1725564828475,8.0542896,129.58,129.55,1.54356203]
[1725564828686,8.0542896,129.58,129.55,46.54356203]
[1725564828884,0.3369896,129.58,129.55,54.26236203]
[1725564829908,0.3369896,129.58,129.55,46.54356203]
[1725564830071,0.3369896,129.58,129.57,7.7178]
[1725564830278,0.3369896,129.58,129.57,52.7178]
[1725564830676,0.3369896,129.58,129.57,54.26085552]
[1725564830900,0.3369896,129.58,129.57,76.56575552]
[1725564831379,0.3369896,129.58,129.57,75.0227]
[1725564831877,0.8369896,129.71,129.61,50.0]
[1725564832075,2.76471791,129.71,129.62,1.54218265]
[1725564832278,0.8369896,129.71,129.64,50.0]
[1725564832480,0.8369896,129.71,129.66,7.7124]
[1725564832882,0.8369896,129.71,129.65,26.9946]
[1725564833084,7.7119,129.67,129.63,22.2844]
[1725564833275,0.8369896,129.71,129.64,96.54224355]
[1725564833474,8.5466896,129.71,129.66,26.9925]
[1725564833674,9.63777925,129.7,129.64,52.7131]
[1725564833873,7.7103,129.7,129.64,45.0]
[1725564835501,7.7103,129.7,129.65,7.713]
[1725564835691,7.7103,129.7,129.66,45.0]
[1725564836089,21.92773955,129.69,129.63,41.5695]
[1725564836294,7.713,129.65,129.6,43.1441]
[1725564836496,7.713,129.65,129.6,35.4286]
[1725564836880,9.64223194,129.64,129.6,27.0053]
[1725564837194,7.7138,129.64,129.6,27.0053]
[1725564837398,7.7138,129.64,129.6,19.2895]
[1725564837588,1.92858581,129.68,129.59,14.3174]
[1725564837793,1.92867144,129.67,129.59,14.3174]
[1725564837990,1.92867144,129.67,129.59,25.8916]
[1725564838298,7.7143,129.63,129.59,25.8916]
[1725564838694,21.20917144,129.67,129.58,7.7166]
[1725564838881,21.20917144,129.67,129.59,7.7166]
[1725564839232,20.0,129.66,129.59,7.7166]
[1725564839390,1.92868003,129.65,129.59,7.7166]
[1725564839912,7.7143,129.63,129.6,45.0]
[1725564840409,7.7137,129.64,129.59,45.0]
[1725564840586,20.0,129.63,129.61,1.01163555]
[1725564840789,1.92845615,129.66,129.61,1.01163555]
[1725564840999,7.7129,129.66,129.61,52.7154]
[1725564841310,27.7132,129.65,129.61,45.0]
[1725564842096,27.7132,129.65,129.61,52.7154]
[1725564842293,27.7132,129.65,129.61,45.0]
[1725564842493,7.7138,129.64,129.61,45.0]
[1725564843710,27.7131,129.65,129.61,45.0]
[1725564844012,9.64064267,129.67,129.62,9.04714566]
[1725564844189,7.7125,129.66,129.63,46.27469531]
[1725564844385,7.7119,129.67,129.63,46.27469531]
[1725564845199,20.0,129.66,129.63,46.27469531]
[1725564845403,7.7114,129.68,129.64,7.7136]
[1725564845596,27.7121,129.67,129.63,52.7141]
[1725564846013,7.7125,129.66,129.63,45.0]
[1725564846183,1.92823867,129.66,129.61,6.4348]
[1725564846388,7.7138,129.64,129.59,27.0069]
[1725564847286,7.7155,129.61,129.58,6.0141]
[1725564847710,7.7155,129.61,129.57,23.8567]
[1725564847891,7.7155,129.61,129.58,1.54321742]
[1725564848304,7.7149,129.62,129.58,7.7172]
[1725564848505,20.0,129.61,129.58,7.7172]
[1725564848890,20.0,129.61,129.59,45.0]
[1725564850006,20.0,129.61,129.59,46.54306591]